fUST/lending_fUST_20240813
["ID","MTS","AMOUNT","RATE_DAILY","PERIOD"]
[334721290,1723507842731,-167.83682051,0.00014148,2]
[334721291,1723507842742,-500.0,0.00014148,2]
[334721292,1723507842752,-500.0,0.00014148,2]
[334721293,1723507842762,-500.0,0.00014148,2]
[334721294,1723507842773,-500.0,0.00014148,2]
[334721295,1723507842784,-555.00322272,0.00014148,2]
[334721296,1723507842794,-500.0,0.00014148,2]
[334721297,1723507842804,-500.0,0.00014148,2]
[334721298,1723507842815,-151.0,0.00014148,2]
[334721299,1723507842824,-500.0,0.00014148,2]
[334721300,1723507842834,-151.0,0.00014148,2]
[334721301,1723507842844,-538.62229691,0.00014148,2]
[334721302,1723507842854,-500.0,0.00014148,2]
[334721303,1723507842863,-386.42793739,0.00014148,2]
[334721304,1723507842874,-505.1534437,0.00014148,2]
[334721305,1723507842884,-503.80031897,0.00014148,2]
[334721306,1723507842893,-500.0,0.00014148,2]
[334721307,1723507842903,-500.0,0.00014148,2]
[334721308,1723507842914,-151.0,0.00014148,2]
[334721309,1723507842923,-500.0,0.00014148,2]
[334721310,1723507842933,-500.0,0.00014148,2]
[334721311,1723507842943,-151.0,0.00014148,2]
[334721312,1723507842954,-503.24843815,0.00014148,2]
[334721313,1723507842963,-500.0,0.00014148,2]
[334721314,1723507842974,-500.0,0.00014148,2]
[334721315,1723507842985,-500.0,0.00014148,2]
[334721316,1723507842995,-500.73988775,0.00014148,2]
[334721317,1723507843004,-500.0,0.00014148,2]
[334721318,1723507843014,-500.0,0.00014148,2]
[334721320,1723507843023,-500.0,0.00014148,2]
[334721321,1723507843034,-508.82790382,0.00014148,2]
[334721322,1723507843046,-151.0,0.00014148,2]
[334721323,1723507843056,-504.68628775,0.00014148,2]
[334721324,1723507843066,-509.59232505,0.00014148,2]
[334721325,1723507843076,-500.0,0.00014148,2]
[334721326,1723507843085,-502.78650335,0.00014148,2]
[334721327,1723507843096,-151.0,0.00014148,2]
[334721328,1723507843106,-500.0,0.00014148,2]
[334721329,1723507843116,-500.0,0.00014148,2]
[334721330,1723507843126,-500.0,0.00014148,2]
[334721331,1723507843136,-503.3674401,0.00014148,2]
[334721332,1723507843146,-500.0,0.00014148,2]
[334721333,1723507843156,-505.16646545,0.00014148,2]
[334721334,1723507843167,-500.0,0.00014148,2]
[334721335,1723507843177,-151.0,0.00014148,2]
[334721336,1723507843187,-279.88289901,0.00014148,2]
[334721337,1723507843196,-550.02,0.00014148,2]
[334721338,1723507843206,-500.0,0.00014148,2]
[334721339,1723507843215,-500.0,0.00014148,2]
[334721340,1723507843226,-500.0,0.00014148,2]
[334721341,1723507843235,-704.31,0.00014148,2]
[334721342,1723507843245,-701.07,0.00014148,2]
[334721343,1723507843255,-500.0,0.00014148,2]
[334721344,1723507843264,-500.0,0.00014148,2]
[334721345,1723507843273,-152.797487,0.00014148,2]
[334721346,1723507843282,-500.0,0.00014148,2]
[334721347,1723507843291,-500.0,0.00014148,2]
[334721348,1723507843301,-618.22,0.00014148,2]
[334721351,1723507843313,-500.0,0.00014148,2]
[334721353,1723507843323,-504.83163467,0.00014148,2]
[334721355,1723507843335,-500.0,0.00014148,2]
[334721357,1723507843346,-688.92,0.00014148,2]
[334721359,1723507843356,-500.0,0.00014148,2]
[334721361,1723507843366,-500.0,0.00014148,2]
[334721363,1723507843375,-500.0,0.00014148,2]
[334721365,1723507843384,-2423.01,0.00014148,2]
[334721367,1723507843394,-500.0,0.00014148,2]
[334721369,1723507843403,-151.0,0.00014148,2]
[334721371,1723507843412,-500.0,0.00014148,2]
[334721373,1723507843422,-535.05,0.00014148,2]
[334721375,1723507843431,-500.0,0.00014148,2]
[334721376,1723507843440,-500.0,0.00014148,2]
[334721377,1723507843449,-151.0,0.00014148,2]
[334721379,1723507843458,-506.13000869,0.00014148,2]
[334721381,1723507843468,-506.28635247,0.00014148,2]
[334721383,1723507843477,-500.0,0.00014148,2]
[334721385,1723507843486,-500.0,0.00014148,2]
[334721386,1723507843495,-577.60026551,0.00014148,2]
[334721387,1723507843504,-500.0,0.00014148,2]
[334721388,1723507843513,-503.04790354,0.00014148,2]
[334721389,1723507843523,-500.0,0.00014148,2]
[334721390,1723507843532,-500.001487,0.00014148,2]
[334721391,1723507843541,-500.0,0.00014148,2]
[334721392,1723507843550,-552.98054679,0.00014148,2]
[334721393,1723507843559,-1062.16,0.00014148,2]
[334721394,1723507843569,-500.0,0.00014148,2]
[334721395,1723507843578,-500.0,0.00014148,2]
[334721396,1723507843587,-500.0,0.00014148,2]
[334721397,1723507843597,-500.0,0.00014148,2]
[334721398,1723507843606,-230.78518534,0.00014148,2]
[334721399,1723507843616,-500.0,0.00014148,2]
[334721400,1723507843625,-520.15882396,0.00014148,2]
[334721401,1723507843635,-500.0,0.00014148,2]
[334721402,1723507843644,-500.0,0.00014148,2]
[334721403,1723507843653,-500.0,0.00014148,2]
[334721404,1723507843664,-500.0,0.00014148,2]
[334721405,1723507843672,-519.53,0.00014148,2]
[334721406,1723507843682,-500.0,0.00014148,2]
[334721407,1723507843693,-500.0,0.00014148,2]
[334721408,1723507843703,-537.897914,0.00014148,2]
[334721409,1723507843712,-537.897914,0.00014148,2]
[334721410,1723507843721,-537.897914,0.00014148,2]
[334721411,1723507843731,-537.897914,0.00014148,2]
[334721412,1723507843742,-500.0,0.00014148,2]
[334721413,1723507843754,-537.45,0.00014148,2]
[334721414,1723507843764,-502.64746291,0.00014148,2]
[334721415,1723507843776,-500.0,0.00014148,2]
[334721416,1723507843786,-500.0,0.00014148,2]
[334721417,1723507843795,-500.0,0.00014148,2]
[334721418,1723507843804,-500.0,0.00014148,2]
[334721419,1723507843813,-225.25171686,0.00014148,2]
[334721420,1723507843822,-502.36932696,0.00014148,2]
[334721421,1723507843831,-620.74,0.00014148,2]
[334721422,1723507843841,-156.885762,0.00014148,2]
[334721423,1723507843850,-506.12883141,0.00014148,2]
[334721424,1723507843860,-502.68630497,0.00014148,2]
[334721425,1723507843869,-222.315891,0.00014148,2]
[334721426,1723507843878,-222.315891,0.00014148,2]
[334721427,1723507843888,-500.0,0.00014148,2]
[334721428,1723507843897,-505.64252159,0.00014148,2]
[334721429,1723507843906,-222.315891,0.00014148,2]
[334721430,1723507843917,-222.315891,0.00014148,2]
[334721431,1723507843927,-500.0,0.00014148,2]
[334721432,1723507843937,-500.0,0.00014148,2]
[334721433,1723507843950,-718.15,0.00014148,2]
[334721434,1723507843960,-509.53757874,0.00014148,2]
[334721435,1723507843970,-500.0,0.00014148,2]
[334721436,1723507843982,-500.0,0.00014148,2]
[334721437,1723507843991,-279.59967043,0.00014148,2]
[334721438,1723507844002,-500.0,0.00014148,2]
[334721439,1723507844014,-505.37416633,0.00014148,2]
[334721440,1723507844023,-1075.54,0.00014148,2]
[334721441,1723507844034,-500.0,0.00014148,2]
[334721442,1723507844044,-151.0,0.00014148,2]
[334721443,1723507844054,-151.0,0.00014148,2]
[334721444,1723507844063,-151.0,0.00014148,2]
[334721445,1723507844072,-151.0,0.00014148,2]
[334721447,1723507844082,-1420.19,0.00014148,2]
[334721449,1723507844092,-500.0,0.00014148,2]
[334721451,1723507844102,-1225.82,0.00014148,2]
[334721453,1723507844113,-1051.48,0.00014148,2]
[334721456,1723507844124,-313.882869,0.00014148,2]
[334721458,1723507844136,-313.882869,0.00014148,2]
[334721460,1723507844146,-313.882869,0.00014148,2]
[334721462,1723507844156,-379.779369,0.00014148,2]
[334721464,1723507844167,-313.882869,0.00014148,2]
[334721466,1723507844178,-379.779369,0.00014148,2]
[334721468,1723507844190,-379.779369,0.00014148,2]
[334721471,1723507844200,-761.704664,0.00014148,2]
[334721473,1723507844211,-761.704664,0.00014148,2]
[334721475,1723507844223,-157.402392,0.00014148,2]
[334721477,1723507844234,-500.0,0.00014148,2]
[334721479,1723507844245,-157.402392,0.00014148,2]
[334721481,1723507844256,-761.704664,0.00014148,2]
[334721483,1723507844266,-761.704664,0.00014148,2]
[334721485,1723507844276,-151.0,0.00014148,2]
[334721487,1723507844286,-500.0,0.00014148,2]
[334721489,1723507844296,-157.402392,0.00014148,2]
[334721491,1723507844305,-157.402392,0.00014148,2]
[334721493,1723507844315,-151.0,0.00014148,2]
[334721495,1723507844328,-151.0,0.00014148,2]
[334721497,1723507844339,-500.0,0.00014148,2]
[334721499,1723507844349,-6792.66,0.00014148,2]
[334721501,1723507844359,-503.10663543,0.00014148,2]
[334721503,1723507844369,-503.23853271,0.00014148,2]
[334721504,1723507844378,-505.58590369,0.00014148,2]
[334721505,1723507844388,-500.0,0.00014148,2]
[334721506,1723507844397,-505.18072017,0.00014148,2]
[334721507,1723507844407,-500.0,0.00014148,2]
[334721508,1723507844418,-218.526785,0.00014148,2]
[334721509,1723507844429,-1340.35,0.00014148,2]
[334721510,1723507844438,-500.0,0.00014148,2]
[334721511,1723507844449,-500.0,0.00014148,2]
[334721512,1723507844458,-500.0,0.00014148,2]
[334721513,1723507844468,-151.0,0.00014148,2]
[334721514,1723507844478,-619.41,0.00014148,2]
[334721515,1723507844489,-774.02,0.00014148,2]
[334721516,1723507844500,-500.0,0.00014148,2]
[334721517,1723507844511,-282.70644405,0.00014148,2]
[334721518,1723507844523,-506.51584812,0.00014148,2]
[334721519,1723507844536,-521.699287,0.00014148,2]
[334721520,1723507844547,-521.699287,0.00014148,2]
[334721521,1723507844558,-502.41031601,0.00014148,2]
[334721522,1723507844568,-521.699287,0.00014148,2]
[334721523,1723507844578,-521.699287,0.00014148,2]
[334721524,1723507844589,-575.86,0.00014148,2]
[334721525,1723507844599,-1466.57,0.00014148,2]
[334721526,1723507844611,-212.930991,0.00014148,2]
[334721527,1723507844621,-212.930991,0.00014148,2]
[334721528,1723507844631,-500.0,0.00014148,2]
[334721529,1723507844642,-668.816618,0.00014148,2]
[334721530,1723507844655,-668.816618,0.00014148,2]
[334721531,1723507844667,-212.930991,0.00014148,2]
[334721532,1723507844677,-500.0,0.00014148,2]
[334721533,1723507844687,-212.930991,0.00014148,2]
[334721534,1723507844699,-668.816618,0.00014148,2]
[334721535,1723507844709,-668.816618,0.00014148,2]
[334721536,1723507844718,-1099.053527,0.00014148,2]
[334721537,1723507844728,-1099.053527,0.00014148,2]
[334721538,1723507844739,-1374.2,0.00014148,2]
[334721539,1723507844749,-1099.053527,0.00014148,2]
[334721540,1723507844759,-1099.053527,0.00014148,2]
[334721541,1723507844770,-292.361461,0.00014148,2]
[334721542,1723507844780,-292.361461,0.00014148,2]
[334721543,1723507844790,-866.13,0.00014148,2]
[334721544,1723507844800,-292.361461,0.00014148,2]
[334721545,1723507844809,-292.361461,0.00014148,2]
[334721546,1723507844819,-500.0,0.00014148,2]
[334721547,1723507844829,-151.0,0.00014148,2]
[334721548,1723507844840,-151.0,0.00014148,2]
[334721549,1723507844851,-500.0,0.00014148,2]
[334721550,1723507844861,-550.0,0.00014148,2]
[334721551,1723507844870,-2072.3,0.00014148,2]
[334721552,1723507844880,-500.0,0.00014148,2]
[334721553,1723507844890,-1212.29,0.00014148,2]
[334721554,1723507844900,-979.49,0.00014148,2]
[334721555,1723507844912,-226.806824,0.00014148,2]
[334721556,1723507844927,-226.806824,0.00014148,2]
[334721557,1723507844939,-505.0683132,0.00014148,2]
[334721558,1723507844948,-630.41046164,0.00014148,2]
[334721559,1723507844958,-226.806824,0.00014148,2]
[334721560,1723507844967,-226.806824,0.00014148,2]
[334721561,1723507844977,-151.0,0.00014148,2]
[334721562,1723507844987,-151.0,0.00014148,2]
[334721563,1723507844996,-151.0,0.00014148,2]
[334721564,1723507845006,-151.0,0.00014148,2]
[334721565,1723507845015,-151.0,0.00014148,2]
[334721566,1723507845025,-180.569942,0.00014148,2]
[334721567,1723507845035,-500.0,0.00014156,2]
[334721568,1723507845045,-297.51445606,0.00014157,2]
[334721569,1723507845054,-500.0,0.00014157,2]
[334721570,1723507845063,-500.0,0.00014157,2]
[334721571,1723507845072,-151.0,0.00014157,2]
[334721572,1723507845082,-151.0,0.00014157,2]
[334721573,1723507845092,-761.704664,0.00014157,2]
[334721574,1723507845101,-157.402392,0.00014157,2]
[334721575,1723507845111,-761.704664,0.00014157,2]
[334721576,1723507845120,-157.402392,0.00014157,2]
[334721577,1723507845130,-521.699287,0.00014157,2]
[334721578,1723507845140,-521.699287,0.00014157,2]
[334721579,1723507845149,-212.930991,0.00014157,2]
[334721580,1723507845159,-668.816618,0.00014157,2]
[334721581,1723507845171,-212.930991,0.00014157,2]
[334721582,1723507845180,-668.816618,0.00014157,2]
[334721583,1723507845189,-1099.053527,0.00014157,2]
[334721584,1723507845199,-1099.053527,0.00014157,2]
[334721585,1723507845208,-292.361461,0.00014157,2]
[334721586,1723507845217,-292.361461,0.00014157,2]
[334721587,1723507845228,-3041.05,0.00014157,2]
[334721588,1723507845238,-500.0,0.00014157,2]
[334721589,1723507845247,-500.0,0.00014157,2]
[334721590,1723507845257,-505.65202889,0.00014158,2]
[334721591,1723507845266,-500.0,0.00014158,2]
[334721592,1723507845275,-500.0,0.00014158,2]
[334721593,1723507845284,-502.11425216,0.00014158,2]
[334721594,1723507845294,-502.42920818,0.00014158,2]
[334721595,1723507845303,-502.21590744,0.00014158,2]
[334721596,1723507845313,-500.0,0.00014158,2]
[334721597,1723507845322,-500.0,0.00014158,2]
[334721598,1723507845331,-500.0,0.00014158,2]
[334721599,1723507845340,-500.0,0.00014158,2]
[334721600,1723507845350,-629.27268015,0.00014158,2]
[334721601,1723507845359,-500.0,0.00014158,2]
[334721602,1723507845368,-501.49390567,0.00014158,2]
[334721603,1723507845377,-500.0,0.00014158,2]
[334721604,1723507845387,-151.0,0.00014158,2]
[334721605,1723507845396,-325.65215929,0.00014158,2]
[334721606,1723507845406,-156.180285,0.00014158,2]
[334721607,1723507845416,-245.18889,0.00014158,2]
[334721608,1723507845426,-505.39360485,0.00014158,2]
[334721609,1723507845436,-507.27813526,0.00014158,2]
[334721610,1723507845445,-151.0,0.00014158,2]
[334721611,1723507845455,-151.0,0.00014158,2]
[334721612,1723507845464,-500.0,0.00014158,2]
[334721613,1723507845474,-500.0,0.00014158,2]
[334721614,1723507845483,-151.0,0.00014158,2]
[334721615,1723507845493,-500.0,0.00014158,2]
[334721616,1723507845622,-500.0,0.00014158,2]
[334721617,1723507845632,-153.08066,0.00014158,2]
[334721618,1723507845642,-500.0,0.00014158,2]
[334721619,1723507845651,-500.0,0.00014158,2]
[334721620,1723507845661,-655.48,0.00014158,2]
[334721621,1723507845670,-151.0,0.00014158,2]
[334721622,1723507845680,-537.897914,0.00014158,2]
[334721623,1723507845691,-537.897914,0.00014158,2]
[334721624,1723507845704,-222.315891,0.00014158,2]
[334721625,1723507845714,-222.315891,0.00014158,2]
[334721626,1723507845723,-500.0,0.00014158,2]
[334721627,1723507845733,-512.17168616,0.00014158,2]
[334721628,1723507845745,-313.882869,0.00014158,2]
[334721629,1723507845755,-313.882869,0.00014158,2]
[334721630,1723507845765,-379.779369,0.00014158,2]
[334721631,1723507845777,-379.779369,0.00014158,2]
[334721632,1723507845786,-153.0,0.00014192,2]
[334721633,1723507845795,-150.112233,0.000142,2]
[334721634,1723507845805,-306.0,0.000142,2]
[334721635,1723507845817,-153.0,0.000142,2]
[334721636,1723507845828,-150.112233,0.000142,2]
[334721637,1723507845838,-513.61556766,0.00014216,2]
[334721638,1723507845849,-500.0,0.0001422,2]
[334721639,1723507845859,-1000.0,0.00014221,2]
[334721640,1723507845868,-151.0,0.00014232,2]
[334721641,1723507845877,-761.704664,0.00014232,2]
[334721642,1723507845886,-157.402392,0.00014232,2]
[334721643,1723507845896,-761.704664,0.00014232,2]
[334721644,1723507845906,-157.402392,0.00014232,2]
[334721645,1723507845917,-500.0,0.00014233,2]
[334721646,1723507845927,-500.0,0.00014233,2]
[334721647,1723507845936,-167.796544,0.00014233,2]
[334721648,1723507845945,-151.0,0.00014233,2]
[334721649,1723507845955,-151.0,0.00014233,2]
[334721650,1723507845964,-151.0,0.00014233,2]
[334721651,1723507845974,-151.0,0.00014233,2]
[334721652,1723507845983,-189.68906606,0.00014237,2]
[334721653,1723507845992,-500.0,0.00014243,2]
[334721654,1723507846001,-175.566444,0.00014247,2]
[334721655,1723507846011,-159.622268,0.00014247,2]
[334721656,1723507846020,-267.8728175,0.000143,2]
[334721657,1723507846029,-1204.92,0.00014301,2]
[334721658,1723507846038,-891.86,0.00014301,2]
[334721659,1723507846047,-766.88,0.00014301,2]
[334721660,1723507846057,-537.897914,0.00014312,2]
[334721661,1723507846066,-537.897914,0.00014312,2]
[334721662,1723507846075,-222.315891,0.00014312,2]
[334721663,1723507846085,-222.315891,0.00014312,2]
[334721664,1723507846095,-313.882869,0.00014312,2]
[334721665,1723507846105,-313.882869,0.00014312,2]
[334721666,1723507846114,-379.779369,0.00014312,2]
[334721667,1723507846123,-379.779369,0.00014312,2]
[334721668,1723507846133,-521.699287,0.00014312,2]
[334721669,1723507846142,-521.699287,0.00014312,2]
[334721670,1723507846152,-212.930991,0.00014312,2]
[334721671,1723507846162,-668.816618,0.00014312,2]
[334721672,1723507846172,-212.930991,0.00014312,2]
[334721673,1723507846182,-668.816618,0.00014312,2]
[334721674,1723507846191,-1099.053527,0.00014312,2]
[334721675,1723507846201,-1099.053527,0.00014312,2]
[334721676,1723507846211,-292.361461,0.00014312,2]
[334721677,1723507846222,-292.361461,0.00014312,2]
[334721678,1723507846234,-1000.0,0.00014313,2]
[334721679,1723507846245,-25000.0,0.00014333,2]
[334721680,1723507846256,-285.616054,0.00014333,2]
[334721681,1723507846266,-761.704664,0.00014333,2]
[334721682,1723507846276,-157.402392,0.00014333,2]
[334721683,1723507846285,-761.704664,0.00014333,2]
[334721684,1723507846295,-157.402392,0.00014333,2]
[334721685,1723507846304,-202.905029,0.00014333,2]
[334721686,1723507846313,-226.806824,0.00014333,2]
[334721687,1723507846324,-226.806824,0.00014333,2]
[334721688,1723507846337,-151.0,0.00014333,2]
[334721689,1723507846348,-151.0,0.00014333,2]
[334721690,1723507846358,-500.0,0.00014389,2]
[334721691,1723507846368,-500.0,0.00014389,2]
[334721692,1723507846378,-500.0,0.00014389,2]
[334721694,1723507846387,-151.0,0.0001439,2]
[334721696,1723507846397,-151.0,0.0001439,2]
[334721698,1723507846407,-151.0,0.0001439,2]
[334721700,1723507846418,-151.0,0.0001439,2]
[334721702,1723507846427,-151.0,0.0001439,2]
[334721704,1723507846437,-151.0,0.0001439,2]
[334721706,1723507846448,-500.0,0.00014399,2]
[334721708,1723507846457,-267.9524887,0.000144,2]
[334721710,1723507846468,-267.9524887,0.000144,2]
[334721712,1723507846478,-150.112233,0.000144,2]
[334721713,1723507846487,-267.9524887,0.000144,2]
[334721715,1723507846497,-535.2971241,0.000144,2]
[334721716,1723507846507,-240.8034288,0.000144,2]
[334721718,1723507846517,-153.0,0.000144,2]
[334721720,1723507846526,-151.0,0.000144,2]
[334721722,1723507846536,-151.0,0.000144,2]
[334721724,1723507846545,-306.0,0.000144,2]
[334721726,1723507846555,-500.0,0.00014401,2]
[334721728,1723507846564,-2071.47,0.00014401,2]
[334721730,1723507846574,-500.0,0.00014401,2]
[334721732,1723507846583,-7738.72,0.00014401,2]
[334721734,1723507846593,-1399.62,0.00014401,2]
[334721736,1723507846603,-891.99,0.0001441,2]
[334721737,1723507846612,-500.0,0.0001441,2]
[334721738,1723507846623,-4531.63,0.0001441,2]
[334721739,1723507846634,-4572.2,0.0001441,2]
[334721740,1723507846645,-1413.72,0.0001441,2]
[334721742,1723507846656,-1535.96,0.0001441,2]
[334721744,1723507846666,-1232.7,0.0001441,2]
[334721745,1723507846682,-500.0,0.0001441,2]
[334721747,1723507846695,-1581.75,0.0001441,2]
[334721749,1723507846705,-500.0,0.0001441,2]
[334721751,1723507846715,-1660.52,0.0001441,2]
[334721753,1723507846726,-500.0,0.0001441,2]
[334721755,1723507846738,-500.0,0.0001441,2]
[334721757,1723507846747,-1077.89,0.0001441,2]
[334721759,1723507846758,-7880.3,0.0001441,2]
[334721760,1723507846769,-500.0,0.00014411,2]
[334721761,1723507846779,-507.2578709,0.00014411,2]
[334721762,1723507846788,-500.0,0.00014411,2]
[334721763,1723507846798,-500.0,0.00014411,2]
[334721764,1723507846808,-500.0,0.00014411,2]
[334721765,1723507846817,-500.0,0.00014411,2]
[334721766,1723507846827,-674.1,0.00014411,2]
[334721767,1723507846836,-500.0,0.00014411,2]
[334721768,1723507846847,-500.0,0.00014411,2]
[334721769,1723507846857,-500.0,0.00014411,2]
[334721770,1723507846866,-500.0,0.00014411,2]
[334721771,1723507846876,-500.0,0.00014411,2]
[334721772,1723507846886,-500.0,0.00014411,2]
[334721773,1723507846895,-500.0,0.00014411,2]
[334721774,1723507846905,-501.21256832,0.00014411,2]
[334721775,1723507846915,-500.0,0.00014411,2]
[334721776,1723507846926,-577.84,0.00014411,2]
[334721777,1723507846936,-500.0,0.00014411,2]
[334721778,1723507846946,-699.4,0.00014411,2]
[334721779,1723507846955,-629.92,0.00014411,2]
[334721780,1723507846965,-500.0,0.00014411,2]
[334721781,1723507846975,-500.0,0.00014411,2]
[334721782,1723507846984,-500.0,0.00014411,2]
[334721783,1723507846994,-500.0,0.00014411,2]
[334721784,1723507847004,-500.0,0.00014411,2]
[334721785,1723507847014,-500.0,0.00014411,2]
[334721786,1723507847023,-838.38,0.00014411,2]
[334721787,1723507847034,-500.0,0.00014411,2]
[334721788,1723507847044,-500.0,0.00014411,2]
[334721789,1723507847053,-500.0,0.00014411,2]
[334721790,1723507847062,-537.897914,0.00014411,2]
[334721791,1723507847073,-500.0,0.00014411,2]
[334721792,1723507847082,-537.897914,0.00014411,2]
[334721793,1723507847092,-500.0,0.00014411,2]
[334721794,1723507847102,-500.0,0.00014411,2]
[334721795,1723507847112,-527.51,0.00014411,2]
[334721796,1723507847122,-500.0,0.00014411,2]
[334721797,1723507847132,-899.59,0.00014411,2]
[334721798,1723507847141,-500.0,0.00014411,2]
[334721799,1723507847151,-500.0,0.00014411,2]
[334721800,1723507847160,-222.315891,0.00014411,2]
[334721801,1723507847171,-662.72,0.00014411,2]
[334721802,1723507847180,-500.0,0.00014411,2]
[334721803,1723507847189,-500.0,0.00014411,2]
[334721804,1723507847199,-222.315891,0.00014411,2]
[334721805,1723507847209,-500.0,0.00014411,2]
[334721806,1723507847219,-930.41,0.00014411,2]
[334721807,1723507847229,-500.0,0.00014411,2]
[334721808,1723507847239,-1528.05,0.00014411,2]
[334721809,1723507847248,-1373.35,0.00014411,2]
[334721810,1723507847257,-796.66,0.00014411,2]
[334721811,1723507847267,-633.27062661,0.00014411,2]
[334721812,1723507847276,-500.0,0.00014411,2]
[334721813,1723507847286,-313.882869,0.00014411,2]
[334721814,1723507847295,-500.0,0.00014411,2]
[334721815,1723507847305,-313.882869,0.00014411,2]
[334721816,1723507847315,-379.779369,0.00014411,2]
[334721817,1723507847325,-379.779369,0.00014411,2]
[334721818,1723507847335,-1120.59,0.00014411,2]
[334721819,1723507847344,-500.0,0.00014411,2]
[334721820,1723507847353,-843.18,0.00014411,2]
[334721821,1723507847363,-500.0,0.00014411,2]
[334721822,1723507847373,-1471.67,0.00014411,2]
[334721823,1723507847383,-500.0,0.00014411,2]
[334721824,1723507847394,-502.58248645,0.00014411,2]
[334721825,1723507847404,-500.0,0.00014411,2]
[334721826,1723507847413,-503.97228914,0.00014411,2]
[334721827,1723507847425,-500.0,0.00014411,2]
[334721828,1723507847436,-500.0,0.00014411,2]
[334721829,1723507847446,-912.85,0.00014411,2]
[334721830,1723507847455,-500.0,0.00014411,2]
[334721831,1723507847465,-1170.09,0.00014411,2]
[334721832,1723507847475,-500.0,0.00014411,2]
[334721833,1723507847485,-873.34,0.00014411,2]
[334721834,1723507847495,-500.0,0.00014411,2]
[334721835,1723507847504,-639.61,0.00014411,2]
[334721836,1723507847513,-500.0,0.00014411,2]
[334721837,1723507847523,-4137.7,0.00014411,2]
[334721838,1723507847533,-521.699287,0.00014411,2]
[334721839,1723507847544,-500.0,0.00014411,2]
[334721840,1723507847554,-521.699287,0.00014411,2]
[334721841,1723507847564,-500.0,0.00014411,2]
[334721842,1723507847574,-500.0,0.00014411,2]
[334721843,1723507847583,-500.0,0.00014411,2]
[334721844,1723507847593,-1462.61,0.00014411,2]
[334721845,1723507847603,-500.0,0.00014411,2]
[334721846,1723507847612,-935.03,0.00014411,2]
[334721847,1723507847623,-409.24520863,0.00014411,2]
[334721848,1723507847633,-500.0,0.00014411,2]
[334721849,1723507847642,-212.930991,0.00014411,2]
[334721850,1723507847652,-668.816618,0.00014411,2]
[334721851,1723507847662,-500.0,0.00014411,2]
[334721852,1723507847674,-212.930991,0.00014411,2]
[334721853,1723507847684,-668.816618,0.00014411,2]
[334721854,1723507847698,-1099.053527,0.00014411,2]
[334721855,1723507847708,-500.0,0.00014411,2]
[334721856,1723507847718,-1099.053527,0.00014411,2]
[334721857,1723507847728,-500.0,0.00014411,2]
[334721858,1723507847738,-633.08,0.00014411,2]
[334721859,1723507847748,-292.361461,0.00014411,2]
[334721860,1723507847758,-292.361461,0.00014411,2]
[334721861,1723507847770,-680.88,0.00014411,2]
[334721862,1723507847781,-500.0,0.00014411,2]
[334721863,1723507847791,-500.0,0.00014411,2]
[334721864,1723507847801,-768.08,0.00014411,2]
[334721865,1723507847811,-500.0,0.00014411,2]
[334721866,1723507847821,-500.0,0.00014411,2]
[334721867,1723507847831,-756.12,0.00014411,2]
[334721868,1723507847841,-500.0,0.00014411,2]